{"text_format":"1","workbook":"xlsx","n_sheets":2,"sheets":["Foglio1","Foglio2"],"not_rendered":{"charts":0,"images":0,"macros":0,"external_links":0,"defined_names":0,"comments":0,"pivot_tables":0},"unopened":[],"bounds":{"document_bytes":16777216,"sheet_cells":100000,"rows_first":2000,"rows_last":500,"rows_between":2000,"halvings":0,"cell_chars":16384,"cell_head_chars":4096},"cells_cut":0,"cells_raw":0,"read":"whole","date_system":"1900"}

{"sheet":"Foglio1","index":0,"n_rows":192,"n_cols":26,"rows_kept":192,"cut":false,"hidden":false,"merged":[[3,1,3,25]]}
[]
[]
[]
["                  CLASSIFICA ASSOLUTA INDIVIDUALE FEMMINILE MASCHILE XXXIII CIRCUITO MASTER OLD STARS 2019","CLASSIFICA ASSOLUTA INDIVIDUALE FEMMINILE MASCHILE XXXV CIRCUITO MASTER  OLD STARS - CARPANI SCI 2022"]
[]
[]
[]
[]
[null,"FEMMINILE DAME C6 ","Anno","Società Old Stars","Società Fisi","Tonale","Aprica","Temù","Borno ","Borno","Comb.Borno","Aprica","Aprica","Chiesa","Chiesa","Comb.Chiesa","Tonale","Tonale","Comb.Tonale","Lizzola","Lizzola","Aprica","Aprica","Bonus","Totale","Classifica"]
[null,"dal 1946  e precedenti"]
[null,"PEZZOTTA LUCIANA ",1942,"SC La Recastello",null,null,null,null,null,null,null,null,null,100,100,100,100,100,100,80,80,100,100,10,{"$f":"SUM(F11:X11)","v":970},1]
[null,"FABRETTO ANNA",1941,"GSA Marinelli","GSA Marinelli",null,100,null,null,null,null,null,null,null,null,null,null,null,null,100,100,null,null,null,{"$f":"SUM(F12:X12)","v":300},2]
[]
[null,"FEMMINILE DAME C5 ","Anno","Società Old Stars","Società Fisi","Tonale","Aprica","Temù","Borno ","Borno","Comb.Borno","Aprica","Aprica","Chiesa","Chiesa","Comb.Chiesa","Tonale","Tonale","Comb.Tonale","Lizzola","Lizzola","Aprica","Aprica","Bonus","Totale","Classifica"]
[null,"dal 1947 al 1951"]
[null,"CARRARA GRAZIELLA",1950,"SC La Recastello",null,null,100,100,100,100,100,100,100,100,100,100,100,100,100,100,100,100,100,30,{"$f":"SUM(F16:X16)","v":1730},1]
[null,"BONZANI MILENA",1949,"SC Cernobbio",null,100,80,null,80,80,80,80,80,80,80,80,null,null,null,80,60,80,50,30,1120,2]
[null,"MONTINI SILVA",1947,"SC Cernobbio","SC Cernobbio",null,60,null,60,60,60,60,60,45,50,50,80,80,80,50,50,50,60,30,985,3]
[null,"CONSONNI MARILU'",1948,"SC Cernobbio",null,50,50,60,50,50,50,45,45,1,45,1,60,60,60,45,40,40,45,60,857,4]
[null,"GAMBA JONNE",1950,"SC La Recastello",null,45,45,50,45,45,45,40,40,50,36,45,45,50,50,40,45,36,36,60,848,5]
[null,"CASTELLINI IVANA",1951,"SC Cernobbio","SC Cernobbio",80,null,null,null,null,null,null,null,60,60,60,null,null,null,60,80,60,80,10,550,6]
[null,"MAGLIA MARIKA",1947,"SC Cernobbio","SC Cernobbio",null,40,null,null,null,null,36,36,1,40,1,50,45,45,36,36,32,32,30,{"$f":"SUM(F22:X22)","v":460},7]
[null,"SANDRINI EMMA",1950,"SC Ski Mountain","SC Ponte d.Olio",60,null,80,null,null,null,50,50,null,null,null,1,1,1,null,null,45,40,10,338,8]
[]
[null,"FEMMINILE DAME C4 ","Anno","Società Old Stars","Società Fisi","Tonale","Aprica","Temù","Borno ","Borno","Comb.Borno","Aprica","Aprica","Chiesa","Chiesa","Comb.Chiesa","Tonale","Tonale","Comb.Tonale","Lizzola","Lizzola","Aprica","Aprica","Bonus","Totale","Classifica"]
[null,"dal 1952 al 1956"]
[null,"BELOTTI P.ANGELA",1956,"SC La Recastello",null,100,100,100,100,100,100,100,100,100,100,100,100,100,100,100,100,100,80,60,{"$f":"SUM(F27:X27)","v":1840},1]
[null,"CAPPELLA ANNA",1955,"SC La Recastello",null,80,80,80,80,80,80,80,80,80,80,80,1,80,1,80,80,60,60,60,{"$f":"SUM(F28:X28)","v":1302},2]
[null,"CORDANI ELENA",1955,"SC La Recastello",null,null,null,null,null,null,null,null,null,null,null,null,null,null,null,null,null,80,100,null,{"$f":"SUM(F29:X29)","v":180},3]
[]
[null,"FEMMINILE DAME C3 ","Anno","Società Old Stars","Società Fisi","Tonale","Aprica","Temù","Borno ","Borno","Comb.Borno","Aprica","Aprica","Chiesa","Chiesa","Comb.Chiesa","Tonale","Tonale","Comb.Tonale","Lizzola","Lizzola","Aprica","Aprica","Bonus","Totale","Classifica"]
[null,"dal 1957 al 1961"]
[null,"MATTARELLI BRUNELLA",1957,"SC Ski Mountain","SC Ski Mountain",100,100,100,100,100,100,100,100,100,100,100,80,80,80,80,80,100,80,60,{"$f":"SUM(F33:X33)","v":1740},1]
[null,"MERELLI MARIA LUISA",1958,"SC La Recastello",null,null,60,80,80,80,80,80,80,null,null,null,60,60,60,60,60,80,60,30,{"$f":"SUM(F34:X34)","v":1010},2]
[null,"SANTAMBROGIO CRISTINA",1958,"SC Ski Mountain","SC Oggi si Scia",null,null,null,null,null,null,null,null,80,80,80,100,100,100,100,100,1,100,10,{"$f":"SUM(F35:X35)","v":851},3]
[null,"COMINELLI LIVIA",1958,"SC La Recastello",null,80,80,60,null,null,null,null,null,null,null,null,50,50,50,null,null,null,null,10,{"$f":"SUM(F36:X36)","v":380},4]
[]
[null,"FEMMINILE DAME C2","Anno","Società Old Stars","Società Fisi","Tonale","Aprica","Temù","Borno ","Borno","Comb.Borno","Aprica","Aprica","Chiesa","Chiesa","Comb.Chiesa","Tonale","Tonale","Comb.Tonale","Lizzola","Lizzola","Aprica","Aprica","Bonus","Totale","Classifica"]
[null,"dal 1962 al 1966"]
[null,"MERELLI DELIA",1964,"SC La Recastello",null,100,60,100,100,100,100,80,80,null,null,null,80,80,80,80,80,60,60,30,{"$f":"SUM(F40:X40)","v":1270},1]
[null,"FUMAGALLI P.ANGELA",1963,"SC La Recastello","SC OS Noi",null,100,null,null,null,null,100,100,null,null,null,100,100,100,null,null,100,100,10,810,2]
[null,"CAPPONI LIANA",1962,"SC Ski Mountain",null,null,null,null,null,null,null,null,null,100,100,100,60,60,60,60,60,null,null,10,610,3]
[null,"RIGAMONDI GEGIA",1966,"SC Ski Mountain",null,null,null,null,null,null,null,null,null,null,null,null,null,null,null,100,100,80,80,null,360,4]
[null,"DONINI BRUNA",1965,"SC La Recastello",null,null,null,null,null,null,null,null,null,80,80,80,null,null,null,null,null,null,null,null,240,5]
[null,"CURIONI MARIA LUISA",1966,"SC Ski Mountain","SC Marzotto",null,80,null,null,null,null,null,null,null,null,null,null,null,null,null,null,null,null,null,80,6]
[]
[null,"FEMMINILE DAME C1","Anno","Società Old Stars","Società Fisi","Tonale","Aprica","Temù","Borno ","Borno","Comb.Borno","Aprica","Aprica","Chiesa","Chiesa","Comb.Chiesa","Tonale","Tonale","Comb.Tonale","Lizzola","Lizzola","Aprica","Aprica","Bonus","Totale","Classifica"]
[null,"dal 1967 al 1972"]
[null,"COLOMBO MELISSA",1967,"SC Ski Mountain","SC Ski Mountain",null,null,null,null,null,null,null,null,null,null,null,null,null,null,null,null,100,100,null,{"$f":"SUM(F49:X49)","v":200},1]
[]
[null,"FEMMINILE JUNIOR","Anno","Società Old Stars","Società Fisi","Tonale","Aprica","Temù","Borno ","Borno","Comb.Borno","Aprica","Aprica","Chiesa","Chiesa","Comb.Chiesa","Tonale","Tonale","Comb.Tonale","Lizzola","Lizzola","Aprica","Aprica","Bonus","Totale","Classifica"]
[null,"dal 1973 al 2002"]
[null,"BALLI MANUELA",1976,"SC La Recastello",null,null,null,null,null,null,null,null,null,null,null,null,100,100,100,null,null,null,null,null,{"$f":"SUM(F53:X53)","v":300},1]
[null,"ZAMBONI MORGANA",1987,"SC Ski Mountain","SC Corte Franca",100,null,null,null,null,null,null,null,null,null,null,null,null,null,null,null,null,null,null,{"$f":"SUM(F54:X54)","v":100},2]
[]
[null,"SUPER 85","Anno","Società Old Stars","Società Fisi","Tonale","Aprica","Temù","Borno ","Borno","Comb.Borno","Aprica","Aprica","Chiesa","Chiesa","Comb.Chiesa","Tonale","Tonale","Comb.Tonale","Lizzola","Lizzola","Aprica","Aprica","Bonus","Totale","Classifica"]
[null,"dal 1936 e precedenti"]
[null,"MORO  MARIO",1934,"SC Ski Mountain",null,null,null,null,100,100,100,null,null,null,null,null,null,null,null,80,80,100,100,10,{"$f":"SUM(F58:X58)","v":670},1]
[null,"SURINI VINICIO",1936,"SC La Recastello","SC Goggi",null,100,null,null,null,null,100,100,null,null,null,null,null,null,100,100,null,null,10,{"$f":"SUM(F59:X59)","v":510},2]
[null,"CANTU' ROBERTO",1930,"SC Ski Mountain","SC Ski Mountain",null,null,null,null,null,null,null,null,null,null,null,null,null,null,null,null,80,80,null,{"$f":"SUM(F60:X60)","v":160},3]
[null,"AMIGONI LUIGI",1934,"SC La Recastello","SC Ski Mountain",100,null,null,null,null,null,null,null,null,null,null,null,null,null,null,null,null,null,null,{"$f":"SUM(F61:X61)","v":100},4]
[]
[null,"SUPER 80","Anno","Società Old Stars","Società Fisi","Tonale","Aprica","Temù","Borno ","Borno","Comb.Borno","Aprica","Aprica","Chiesa","Chiesa","Comb.Chiesa","Tonale","Tonale","Comb.Tonale","Lizzola","Lizzola","Aprica","Aprica","Bonus","Totale","Classifica"]
[null,"dal 1937 al 1941"]
[null,"GILARDONI FRANCESCO",1940,"SC Cernobbio","SC Cernobbio",null,null,null,null,null,null,null,null,100,100,100,null,null,null,100,100,80,80,10,{"$f":"SUM(F65:X65)","v":670},1]
[null,"PIRAS ORIO",1941,"SC Ski Mountain","SC Ski Mountain",null,null,null,null,null,null,null,null,null,null,null,null,null,null,null,null,100,100,null,{"$f":"SUM(F66:X66)","v":200},2]
[]
[null,"SUPER 75","Anno","Società Old Stars","Società Fisi","Tonale","Aprica","Temù","Borno ","Borno","Comb.Borno","Aprica","Aprica","Chiesa","Chiesa","Comb.Chiesa","Tonale","Tonale","Comb.Tonale","Lizzola","Lizzola","Aprica","Aprica","Bonus","Totale","Classifica"]
[null,"dal 1942 al 1946"]
[null,"FERRI GIUSEPPE",1944,"SC La Recastello","SC Orezzo",50,60,60,100,100,100,60,60,100,60,80,50,45,50,100,100,60,60,60,{"$f":"SUM(F70:X70)","v":1355},1]
[null,"FUMASONI ROBERTO",1946,"SC Cernobbio","SC Valli del Bitto",100,80,100,null,null,null,100,80,80,80,100,60,60,60,null,null,80,100,30,1110,2]
[null,"BAVO GIUSEPPE",1946,"SC Cernobbio","SC Valli del Bitto",80,100,null,null,null,null,80,100,1,100,1,100,80,100,null,null,100,80,30,952,3]
[null,"PELIZZARI GIANGIACOMO",1943,"SC Cernobbio","SC OS Noi",40,45,45,80,80,80,45,45,null,null,null,36,36,36,80,80,50,50,30,858,4]
[null,"SPLUGA ENZO",1942,"SC La Recastello","SC Orezzo",36,36,36,1,50,1,36,36,40,36,40,29,26,26,45,45,36,29,60,644,5]
[null,"BORIERO GIANNI",1946,"SC Cernobbio","SC Retike Ski",32,40,32,null,null,null,40,40,60,50,60,26,32,29,null,null,1,45,30,517,6]
[null,"ARIZZI CARLO",1943,"SC Ski Mountain",null,null,null,null,null,null,null,null,null,45,45,50,32,29,32,60,60,40,36,10,439,7]
[null,"CATTANEO ACHILLE",1943,"SC Ski Mountain","SC Pontedilegno",60,1,80,null,null,null,null,null,null,null,null,80,100,80,null,null,null,null,10,411,8]
[null,"MELZI CARLO",1945,"SC La Recastello","SC OS Noi",45,50,50,null,null,null,50,50,null,null,null,40,40,40,null,null,null,null,10,375,9]
[null,"MODESTI ATTILIO",1946,"SC Ski Mountain",null,null,null,null,60,60,60,null,null,null,null,null,null,null,null,50,50,32,32,10,354,10]
[null,"BOMBARDIERI ENZO",1945,"SC Cernobbio",null,null,null,null,null,null,null,null,null,60,40,45,null,null,null,null,null,45,40,null,230,11]
[null,"RUFFINONI ALDO",1945,"SC La Recastello",null,null,null,40,null,null,null,null,null,null,null,null,45,50,45,1,1,null,null,10,192,12]
[]
[null,"SUPER 70","Anno","Società Old Stars","Società Fisi","Tonale","Aprica","Temù","Borno ","Borno","Comb.Borno","Aprica","Aprica","Chiesa","Chiesa","Comb.Chiesa","Tonale","Tonale","Comb.Tonale","Lizzola","Lizzola","Aprica","Aprica","Bonus","Totale","Classifica"]
[null,"dal 1947 al 1951"]
[null,"ZUGNONI LIVIO",1951,"SC Cernobbio","SC Valli del Bitto",80,80,100,100,100,100,80,80,80,80,80,80,80,80,100,80,80,80,60,{"$f":"SUM(F85:X85)","v":1600},1]
[null,"CURTONI GIORGIO",1951,"SC Ski Mountain","SC Ski Mountain",100,100,null,null,null,null,100,100,100,100,100,100,100,100,80,100,100,100,30,1410,2]
[null,"NOVELLI NANDO",1947,"SC Ski Mountain","SC Ski Mountain",45,36,40,60,60,60,40,45,32,26,29,40,45,40,60,60,32,45,60,855,3]
[null,"BERERA LINO",1949,"SC La Recastello",null,null,50,50,80,80,80,60,60,60,45,45,null,null,null,null,null,45,40,30,725,4]
[null,"MODANESI ROMEO",1951,"SC Ski Mountain","SC Ski Mountain",50,40,36,null,null,null,50,36,29,40,32,45,50,50,50,50,36,29,30,653,5]
[null,"GARBELLINI LINO",1947,"SC Cernobbio","SC Retike Ski",40,60,80,null,null,null,1,50,45,60,50,50,40,45,null,null,40,32,30,623,6]
[null,"FERRI CARLO",1949,"SC Cernobbio","SC Stage Master",null,45,60,null,null,null,null,null,50,50,60,60,60,60,null,null,50,50,10,555,7]
[null,"MAGNI GIGI",1950,"SC La Recastello","SC Orezzo",26,20,26,40,40,40,36,29,24,29,24,null,null,null,40,40,24,24,30,492,8]
[null,"IMBERTI G.BATTISTA",1949,"SC La Recastello","SC Orezzo",36,26,45,50,50,50,45,40,40,36,40,null,null,null,null,null,null,null,10,468,9]
[null,"AGAZZI LUCIO",1947,"G.S.A.Marinelli","GSA Marinelli",32,22,null,45,45,45,32,26,null,null,null,32,26,26,32,32,20,20,30,465,10]
[null,"GHILARDI ANGELO",1947,"G.S.A.Marinelli","GSA Marinelli",24,18,null,36,36,36,24,20,18,18,18,24,22,22,26,24,15,15,30,426,11]
[null,"ROSSI MARCELLO",1951,"SC Ski Mountain","SC Cristal Ski",29,24,29,null,null,null,null,null,36,32,36,29,32,32,36,36,22,22,30,425,12]
[null,"ALBRICCI NATALE",1947,"SC Ski Mountain","SC Radici",null,null,32,null,null,null,null,null,null,null,null,26,29,29,45,45,29,36,10,281,13]
[null,"CEMMI FEDERICO",1951,"SC Ski Mountain","SC Corte Franca",60,32,null,null,null,null,29,24,null,null,null,36,36,36,null,null,null,null,10,263,14]
[null,"BIELLA GIUSEPPE",1950,"SC Ski Mountain","SC Cristal Ski",20,1,24,null,null,null,null,null,20,20,20,18,20,18,24,29,16,16,30,276,15]
[null,"FRACCHIA MAURIZIO",1948,"SC Cernobbio",null,null,16,null,null,null,null,26,22,22,22,22,22,24,24,null,null,18,18,10,246,16]
[null,"BUZZETTI ALFREDO",1949,"SC Cernobbio","SC Ski Mountain",null,29,null,null,null,null,1,32,26,24,26,null,null,null,null,null,26,26,10,200,17]
[null,"FERRARI DARIO",1947,"SC La Recastello","SC Ski Mountain",22,null,null,null,null,null,null,null,null,null,null,20,18,20,29,26,null,null,10,145,18]
[null,"GRASSI GIOVANNI",1949,"SC La Recastello","SC Val di Scalve",null,null,null,null,null,null,null,null,null,null,null,null,null,null,null,null,60,60,null,120,19]
[]
[null,"SUPER  65","Anno","Società Old Stars","Società Fisi","Tonale","Aprica","Temù","Borno ","Borno","Comb.Borno","Aprica","Aprica","Chiesa","Chiesa","Comb.Chiesa","Tonale","Tonale","Comb.Tonale","Lizzola","Lizzola","Aprica","Aprica","Bonus","Totale","Classifica"]
[null,"dal 1952 al 1956"]
[null,"BERGAMELLI G.PIETRO",1954,"SC Ski Mountain","SC Enjoy SkiTeam",null,100,100,100,100,100,100,80,80,80,80,80,60,80,100,80,50,50,30,{"$f":"SUM(F107:X107)","v":1450},1]
[null,"VITALI IVAN",1953,"SC Ski Mountain","SC Radici",100,80,80,80,80,80,null,null,null,null,null,100,100,100,60,100,80,100,30,1170,2]
[null,"GANDOSSI DANILO",1956,"SC La Recastello","SC Orezzo",80,60,50,60,60,60,60,60,100,60,60,50,50,50,50,45,45,45,60,1105,3]
[null,"SABBADINI MARIO",1955,"SC La Recastello","SC Orezzo",null,null,60,null,null,null,80,100,60,100,100,60,80,60,80,60,100,80,30,1050,4]
[null,"CORBELLA PIERO",1954,"SC La Recastello","SC Unicredit MI",60,45,45,null,null,null,45,45,45,50,50,45,45,45,36,36,40,40,30,702,5]
[null,"GAMBA BRUNO",1952,"SC La Recastello","SC OS Noi",null,null,40,50,50,50,50,50,null,null,null,32,36,32,45,50,32,29,30,576,6]
[null,"LOMBARDI CARMINE",1955,"SC La Recastello","SC Orezzo",40,26,26,45,45,45,29,29,1,32,1,26,24,24,26,32,22,22,60,555,7]
[null,"BALZARETTI ANGELO",1955,"SC Cernobbio","SC Cernobbio",null,40,null,null,null,null,40,32,40,40,40,40,40,40,40,40,36,36,30,534,8]
[null,"ZERBONI FAUSTO",1953,"SC Cernobbio","SC Retike Ski",45,36,36,null,null,null,36,40,32,36,36,24,29,26,null,null,24,24,30,454,9]
[null,"BARONCHELLI G.MARIA",1952,"SC La Recastello","SC Orezzo",null,null,29,40,40,40,26,null,36,null,null,29,26,29,29,24,20,20,30,418,10]
[null,"SALVADORI FEDERINO",1955,"SC Cernobbio","SC Stage Master",50,1,32,null,null,null,null,null,50,45,45,36,32,36,null,null,26,26,10,389,11]
[null,"AMBROSIONI G.BATTISTA",1952,"SC Ski Mountain","SC Ski Mountain",32,24,22,36,36,36,null,null,null,null,null,22,22,22,18,18,14,15,30,347,12]
[null,"GOTTI GIORDANO",1953,"SC Cernobbio","SC Retike Ski",36,1,null,null,null,null,24,26,26,29,29,18,18,18,null,null,12,13,30,280,13]
[null,"CONFALONIERI NORBERTO",1952,"SC Ski Mountain","SC La Neve",null,22,null,null,null,null,null,null,29,26,32,null,null,null,32,26,16,16,10,209,14]
[null,"BARANA ENRICO",1953,"SC Ski Mountain","SC Ski Mountain",null,29,null,null,null,null,null,null,24,24,26,null,null,null,24,22,18,18,10,195,15]
[null,"MAGNI MAURIZIO",1953,"SC Ski Mountain","SC Aprica ski",null,32,null,null,null,null,32,36,null,null,null,null,null,null,null,null,29,32,10,171,16]
[null,"DI MATTEO GIOVANNINO",1952,"SC La Recastello",null,null,null,null,32,32,32,null,null,null,null,null,null,null,null,16,16,null,null,null,128,17]
[null,"BAIO MASSIMO",1956,"SC Ski Mountain","SC Monte Medale",null,null,null,null,null,null,null,null,null,null,null,null,null,null,null,null,60,60,null,120,18]
[null,"CAVAGNA GIOVANNI",1953,"SC La Recastello",null,null,null,24,null,null,null,null,null,null,null,null,20,20,20,null,null,null,null,null,84,19]
[null,"DUCI PIO",1952,"SC Ski Mountain","SC Val di Scalve",null,null,null,null,null,null,null,null,null,null,null,null,null,null,22,29,15,14,null,80,20]
[null,"ALBRICCI BORTOLO",1956,"SC La Recastello","SC Gromo",null,null,null,null,null,null,null,null,null,null,null,null,null,null,20,20,13,12,null,65,21]
[null,"LOCATELLI VALERIO",1952,"SC Cernobbio","SC Marzotto",null,50,null,null,null,null,null,null,null,null,null,null,null,null,null,null,null,null,null,50,22]
[]
[null,"Super 60","Anno","Società Old Stars","Società Fisi","Tonale","Aprica","Temù","Borno ","Borno","Comb.Borno","Aprica","Aprica","Chiesa","Chiesa","Comb.Chiesa","Tonale","Tonale","Comb.Tonale","Lizzola","Lizzola","Aprica","Aprica","Bonus","Totale","Classifica"]
[null,"dal 1957 al 1961"]
[null,"GALAS MARIANO",1959,"SC Ski Mountain","SC Ski Mountain",60,100,60,80,60,60,80,80,100,100,100,1,100,1,100,100,80,80,60,{"$f":"SUM(F132:X132)","v":1402},1]
[null,"POMONI FAUSTO",1961,"SC Ski Mountain","SC Valli del Bitto",80,80,50,50,50,50,60,60,80,60,80,60,60,80,null,null,60,60,30,1050,2]
[null,"FAZZINI AMOS",1960,"SC Ski Mountain","SC Alta Valsassina",null,null,100,60,100,100,100,100,60,80,60,null,null,null,null,null,100,100,10,970,3]
[null,"CARRARA ADRIANO",1957,"SC La Recastello","SC Orezzo",50,60,36,45,40,45,50,45,45,45,45,80,50,60,80,80,null,null,30,886,4]
[null,"TOMBINI P.ANGELO",1960,"SC Ski Mountain","SC Ski Mountain",40,45,45,32,32,32,36,40,36,36,36,50,45,50,60,60,36,40,60,811,5]
[null,"VAINI GUIDO",1958,"SC Ski Mountain","SC Ski Mountain",29,36,29,36,36,36,32,36,32,29,29,40,32,40,40,45,32,36,60,685,6]
[null,"BORDAZZI SERGIO",1958,"SC La Recastello","SC Ponte Nossa",24,29,26,29,29,29,null,null,26,32,32,36,40,36,36,32,22,29,30,517,7]
[null,"ORIO SERGIO",1958,"SC Ski Mountain","SC STT Competition",100,null,80,null,null,null,null,null,null,null,null,100,80,100,null,null,null,null,null,460,8]
[null,"MIGLIORATI SERGIO",1959,"SC La Recastello","SC Presolana M.Pora",45,null,null,100,80,80,45,50,null,null,null,null,null,null,null,null,null,null,10,410,9]
[null,"PEZZOLI GIACOMO",1961,"SC La Recastello",null,22,26,22,26,26,26,null,null,29,26,26,null,null,null,32,36,18,20,30,365,10]
[null,"CIAPONI FABIO",1960,"SC Cernobbio","SC Sport Due",26,32,20,null,null,null,29,32,24,24,24,32,26,29,null,null,null,null,10,308,11]
[null,"MAXENTI VINCENZO",1957,"SC Ski Mountain","SC Ski Mountain",18,1,null,null,null,null,20,22,20,20,20,26,24,26,26,26,null,null,10,259,12]
[null,"DONATI ADRIANO",1958,"SC Ski Mountain","SC Snow Eagle",null,null,null,null,null,null,null,null,50,50,50,null,null,null,null,null,45,45,null,240,13]
[null,"CARMINI STEFANO",1961,"SC Ski Mountain","SC Temi Milano",32,null,24,null,null,null,null,null,null,null,null,45,29,45,null,null,20,26,10,231,14]
[null,"PINI FRANCESCO",1961,"SC Ski Mountain","SC Ski Mountain",null,24,null,24,24,24,24,26,null,null,null,null,null,null,29,29,null,null,10,214,15]
[null,"BALZI IVANO",1958,"SC La Recastello","SC OS Noi",null,null,null,null,null,null,26,29,null,null,null,29,36,32,null,null,24,22,10,208,16]
[null,"COLOMBO STEFANO",1961,"SC Ski Mountain","SC Ski Mountain",20,22,18,null,null,null,22,24,22,22,22,null,null,null,null,null,null,null,10,182,17]
[null,"MANGINI BATTISTA",1961,"SC La Recastello","SC Zogno",null,40,null,40,45,40,null,null,null,null,null,null,null,null,null,null,null,null,null,165,18]
[null,"POLATTI ADRIANO",1961,"SC Ski Mountain","SC Aprica SkiTeam",null,50,32,null,null,null,40,null,null,null,null,null,null,null,null,null,40,1,null,163,19]
[null,"GALIZZI OSCAR",1960,"SC Ski Mountain",null,null,null,null,null,null,null,null,null,null,null,null,null,null,null,50,40,26,24,null,140,20]
[null,"BANFI LUCA",1959,"SC Ski Mountain","SC Ski Mountain",36,null,null,null,null,null,null,null,null,null,null,null,null,null,45,50,null,null,null,131,21]
[null,"GALBUSERA GUIDO",1958,"SC Cernobbio","SC Snow Eagle",null,null,null,null,null,null,null,null,40,40,40,null,null,null,null,null,null,null,null,120,22]
[null,"VIGANO ANDREA",1958,"SC La Recastello","SC Stage Master",null,null,null,null,null,null,null,null,null,null,null,null,null,null,null,null,50,50,null,100,23]
[null,"CORTI MASSIMO",1957,"SC Ski Mountain","SC Monte Medale",null,null,null,null,null,null,null,null,null,null,null,null,null,null,null,null,29,32,null,61,24]
[null,"RODIGARI EUGENIO",1958,"SC Ski Mountain",null,null,null,null,null,null,null,null,null,null,null,null,null,null,null,24,24,1,1,null,50,25]
[null,"BRECCIAROLI MAURIZIO",1961,"SC Ski Mountain","SC Giornalisti Italiani",null,null,40,null,null,null,null,null,null,null,null,null,null,null,null,null,null,null,null,40,26]
[null,"RODIGARI ELIO",1961,"SC Ski Mountain",null,null,null,null,null,null,null,null,null,null,null,null,null,null,null,null,null,16,18,null,34,27]
[]
[null,"Super 55","Anno","Società Old Stars","Società Fisi","Tonale","Aprica","Temù","Borno ","Borno","Comb.Borno","Aprica","Aprica","Chiesa","Chiesa","Comb.Chiesa","Tonale","Tonale","Comb.Tonale","Lizzola","Lizzola","Aprica","Aprica","Bonus","Totale","Classifica"]
[null,"dal 1962 al 1966"]
[null,"COLOMBO STEFANO",1966,"SC Ski Mountain","SC Ski Mountain",100,60,80,80,80,80,null,null,80,50,50,50,60,50,60,60,80,60,30,{"$f":"SUM(F162:X162)","v":1110},1]
[null,"PLONA MARCO",1966,"SC Ski Mountain","SC Aprica",null,100,100,null,null,null,100,80,null,null,null,100,100,100,null,null,100,100,10,890,2]
[null,"CANCLINI DAVIDE",1963,"SC Cernobbio","SC Retike Ski",45,40,45,50,50,50,50,50,50,60,60,45,45,45,null,null,50,45,30,810,3]
[null,"ZUGNONI ENEA",1965,"SC Cernobbio",null,50,50,50,null,null,null,null,null,60,80,80,null,null,null,50,1,45,50,10,526,4]
[null,"MULAZZI GIANNI",1966,"SC Ski Mountain","SC Enjoy SkiTeam",null,null,null,100,100,100,null,null,null,null,null,null,null,null,100,100,null,null,null,500,5]
[null,"MAGGIONI ACHILLE",1965,"SC Ski Mountain","SC Ski Race Camp",null,null,null,null,null,null,null,null,100,100,100,null,null,null,null,null,60,80,null,440,6]
[null,"SALVADORI MARCO",1963,"SC Cernobbio","SC Stage Master",80,80,60,null,null,null,null,null,null,null,null,60,50,60,null,null,null,null,10,400,7]
[null,"ZANETTI MATTEO ",1964,"SC Ski Mountain","SC Goggi",null,null,null,null,null,null,null,null,null,null,null,80,80,80,80,80,null,null,null,400,8]
[null,"GUALLA ALFREDO",1962,"SC Ski Mountain","SC Pila",null,null,null,null,null,null,80,100,null,null,null,null,null,null,null,null,null,null,null,180,9]
[null,"MARCONI VALENTINO",1963,"SC La Recastello","SC Ponte Nossa",null,null,null,60,60,60,null,null,null,null,null,null,null,null,null,null,null,null,null,180,10]
[null,"ROSSI PAOLO",1962,"SC La Recastello","SC Rovetta",60,null,null,null,null,null,60,60,null,null,null,null,null,null,null,null,null,null,null,180,11]
[null,"POROTTO MARCO",1962,"SC Ski Mountain",null,null,45,null,null,null,null,null,null,null,null,null,null,null,null,null,null,null,null,null,45,12]
[null,"MANGINI G.PIETRO",1964,"SC La Recastello","SC Zogno",null,null,40,null,null,null,null,null,null,null,null,null,null,null,null,null,null,null,null,40,13]
[]
[null,"Super 50","Anno","Società Old Stars","Società Fisi","Tonale","Aprica","Temù","Borno ","Borno","Comb.Borno","Aprica","Aprica","Chiesa","Chiesa","Comb.Chiesa","Tonale","Tonale","Comb.Tonale","Lizzola","Lizzola","Aprica","Aprica","Bonus","Totale","Classifica"]
[null,"dal 1967 al 1972"]
[null,"CIAPONI WALTER",1969,"SC Cernobbio","SC Sport Due",100,80,100,80,80,80,null,null,80,80,80,100,100,100,100,100,80,80,30,{"$f":"SUM(F178:X178)","v":1450},1]
[null,"SIBOLDI GIULIO",1970,"SC La Recastello","SC Piazzatorre",null,100,80,100,100,100,null,null,100,100,100,80,80,80,80,80,null,null,30,{"$f":"SUM(F179:X179)","v":1210},2]
[null,"GERLETTI ALBERTO",1970,"SC Cernobbio",null,null,null,null,null,null,null,null,null,60,60,60,null,null,null,null,null,60,60,null,{"$f":"SUM(F180:X180)","v":300},3]
[null,"CANTONI DAVIDE",1967,"SC Cernobbio","SC Cernobbio",null,null,null,null,null,null,null,null,50,50,50,null,null,null,null,null,50,50,null,{"$f":"SUM(F181:X181)","v":250},4]
[null,"DE TOMA MARCO",1969,"SC Ski Mountain","SC Enjoy SkiTeam",null,null,null,null,null,null,null,null,null,null,null,null,null,null,null,null,100,100,null,{"$f":"SUM(F182:X182)","v":200},5]
[]
[null,"Junior","Anno","Società Old Stars","Società Fisi","Tonale","Aprica","Temù","Borno ","Borno","Comb.Borno","Aprica","Aprica","Chiesa","Chiesa","Comb.Chiesa","Tonale","Tonale","Comb.Tonale","Lizzola","Lizzola","Aprica","Aprica","Bonus","Totale","Classifica"]
[null,"dal 1973 al 2002"]
[null,"MANGINI MARCO",1996,"SC La Recastello","SC Zogno",60,null,null,100,100,100,null,null,100,100,100,100,100,100,null,null,null,null,10,{"$f":"SUM(F186:X186)","v":970},1]
[null,"COGLIATI GIACOMO",1997,"SC Ski Mountain","SC Amici Montagna",null,null,null,null,null,null,80,100,null,null,null,null,null,null,null,null,100,100,null,380,2]
[null,"DANIELLI ALESSANDRO",1977,"SC Cernobbio",null,null,null,null,null,null,null,null,null,80,80,80,null,null,null,null,null,null,null,null,240,3]
[null,"RICETTI FABRIZIO",1977,"SC Ski Mountain","SC STT Competition",1,null,null,null,null,null,100,null,null,null,null,null,null,null,null,null,null,null,null,101,4]
[null,"SORLINI CHRISTIAN",1975,"SC Ski Mountain","SC Figli d. Vento",100,null,null,null,null,null,null,null,null,null,null,null,null,null,null,null,null,null,null,100,5]
[null,"CIAPONI SIMONE",1994,"SC Cernobbio","SC Sport Due",80,null,null,null,null,null,null,null,null,null,null,null,null,null,null,null,null,null,null,80,6]
[null,"MUTTI LUCA",2001,"SC Ski Mountain","SC STT Competition",1,null,null,null,null,null,null,null,null,null,null,null,null,null,null,null,null,null,null,1,7]

{"sheet":"Foglio2","index":1,"n_rows":0,"n_cols":0,"rows_kept":0,"cut":false,"hidden":false,"merged":[]}